Cogmind - Beta 16 @@@ ROGUE MODE // 2025.11.07 @ 00:32:15 Player: Red Box Result: Destroyed by GG-8KT(R) with Subdweller Laser Performance ------------- Evolutions (0) 0 Regions Visited (2) 400 Robots Destroyed (30) 150 Value Destroyed (632) 632 Prototype IDs (2) 40 Alien Tech Used (0) 0 Bonus (0) 0 TOTAL SCORE: 1222 Bonus ------- None Cogmind --------- Core Integrity 0/250 Matter 260/300 Energy 200/200 System Corruption 2% Temperature Cool (6) Movement Rolling (107) Ox1 Location -10/Subcaves Parts ------- > --- POWER (1) -------- Subdweller Power Source > --- PROPULSION (2) --- Wheel Subdweller Monowheel > --- UTILITY (2) ------ Heat Sink High-capacity Storage Unit > --- WEAPON (2) ------- Beam Cannon Grenade Launcher > --- INVENTORY (20) --- Subdweller Power Source Light Treads Light Treads Wheel Large Storage Unit Improved Terrain Scanner Targeting Computer Core Shielding Makeshift Hacking Suite EM Pulse Gun Riot Gun Subdweller Laser Subdweller Machine Gun Barrage Gun Light Cannon Battle Cannon Dirty Datajack (20) Peak State ------------ > --- POWER ------------ Subdweller Power Source > --- PROPULSION ------- Wheel Subdweller Monowheel > --- UTILITY ---------- Heat Sink High-capacity Storage Unit > --- WEAPON ----------- Beam Cannon Beam Cannon > --- INVENTORY -------- Subdweller Power Source Light Treads Light Treads Wheel Large Storage Unit Improved Terrain Scanner Targeting Computer Core Shielding Makeshift Hacking Suite EM Pulse Gun Riot Gun Subdweller Laser Subdweller Machine Gun Barrage Gun Light Cannon Battle Cannon Grenade Launcher Dirty Datajack [Rating: 12] Favorites ----------- Power Ion Engine Engine Ion Engine Propulsion Aluminum Leg Leg Aluminum Leg Wheel Compact Wheel Utility Improved Terrain Scanner Device Improved Terrain Scanner Storage Large Storage Unit Protection Core Shielding Weapon Light Assault Rifle Energy Gun Medium Laser Energy Cannon Beam Cannon Ballistic Gun Light Assault Rifle Ballistic Cannon Light Cannon Launcher Grenade Launcher Build | -11 -10 -10 ------- Run | Yrd Mat Sub Slots Evolved . | . . . Power . | . . . Propulsion . | . . . Utility . | . . . Weapon . | . . . Parts Attached 31 | 7 18 6 Power 4 | 1 2 1 Engine 4 | 1 2 1 Core . | . . . Reactor . | . . . Propulsion 10 | 2 6 2 Treads . | . . . Leg 5 | 2 3 . Wheel 5 | . 3 2 Hover . | . . . Flight . | . . . Utility 7 | 2 4 1 Device 2 | 1 1 . Storage 4 | 1 2 1 Processor . | . . . Hackware . | . . . Protection 1 | . 1 . Artifact . | . . . Weapon 10 | 2 6 2 Energy Gun 2 | . 2 . Energy Cannon 3 | . 2 1 Ballistic Gun 3 | 2 1 . Ballistic Cannon 1 | . . 1 Launcher 1 | . 1 . Special Weapon . | . . . Impact Weapon . | . . . Slashing Weapon . | . . . Piercing Weapon . | . . . Special Melee Weapon . | . . . Unidentified Prototypes . | . . . Parts Lost 6 | . 1 5 Power 2 | . 1 1 Propulsion 2 | . . 2 Utility . | . . . Weapon 2 | . . 2 Highest Loss Streak 2 | . 1 2 To Critical Strikes . | . . . Average Backups 12 | 3 10 17 Power . | . . . Propulsion 4 | 2 4 3 Utility 2 | . 2 4 Weapon 4 | . 3 7 Tool/Special . | . . . Unused Backups 16 | . 2 14 Power 1 | . . 1 Propulsion 3 | . . 3 Utility 2 | . . 2 Weapon 9 | . 2 7 Tool/Special 1 | . . 1 Average Slot Usage (%) 99 | . 99 99 Engine 13 | . 13 14 Leg 13 | . 17 . Wheel 14 | . 10 27 Device 13 | . 13 14 Storage 14 | . 14 14 Energy Gun 4 | . 5 . Energy Cannon 8 | . 2 25 Ballistic Gun 14 | . 19 . Peak Build Rating 12 | 9 10 12 Average Rating 9 | 5 9 9 On Entrance 5 | . 9 8 Avg Prop Armor Cover (%) . | . . . Naked Turns . | . . . Heaviest Build 52 | 13 32 52 Greatest Support 32 | 20 32 32 Greatest Overweight (x) 1 | 1 1 1 Average Overweight (x) . | . . . Largest Inventory Capacity 20 | 8 15 20 Average Capacity 13 | 7 11 17 Most Carried 20 | 6 15 20 Average Carried 12 | 3 10 17 Final Capacity 20 | 8 15 20 Final Carried 17 | 6 15 17 Class Distribution -------------------- 100% | Mutant Dominant Class ---------------- Mutant | -10/Materials Mutant | -10/Subcaves Resources | -11 -10 -10 ----------- Run | Yrd Mat Sub Matter Collected 878 | 278 476 124 Remotely . | . . . Salvage Created 901 | 99 612 190 Parts 58 | 6 41 11 Haulers Intercepted 1 | . 1 . Recyclers Shooed . | . . . Parts Field Recycled . | . . . Retrieved Matter . | . . . Parts Self-Destructed 16 | . . 16 Prevented . | . . . Parts Restored . | . . . Kills | -11 -10 -10 ------- Run | Yrd Mat Sub Combat Hostiles Destroyed 22 | . 16 6 Guns 9 | . 9 . Cannons 5 | . . 5 AOE 7 | . 6 1 Classes Destroyed 9 | 2 6 1 Worker 1 | . 1 . Builder 1 | . 1 . Tunneler 1 | 1 . . Hauler 1 | . 1 . Recycler 2 | 1 1 . Watcher 2 | . 2 . Swarmer 9 | . 6 3 Grunt 10 | . 10 . Subdweller 3 | . . 3 Best Kill Streak 4 | 2 4 3 Combat Bots Only 3 | . 3 3 Max Kills in Single Turn 3 | 1 3 1 Gunslinging . | . . . Exploded 2 | . 2 1 Melee . | . . . Uniques/NPCs Destroyed . | . . . Combat | -11 -10 -10 -------- Run | Yrd Mat Sub Hostile Shots Fired 181 | . 64 117 Missed 56 | . 14 42 Hits 125 | . 50 75 Projectile 125 | . 50 75 Critical Strikes 1 | . 1 . Damage Taken 1279 | . 526 753 Core 270 | . 83 187 Absorbed by Shields . | . . . Core Remaining (%) 100 | 100 . . Volleys Fired 111 | 4 71 36 Largest 2 | 2 2 2 Hottest 120 | 40 120 120 Shots Fired 209 | 8 139 62 Gun 141 | 8 133 . Cannon 57 | . 2 55 Launcher 11 | . 4 7 Special . | . . . Kinetic 128 | 8 114 6 Thermal 70 | . 21 49 Explosive 11 | . 4 7 Electromagnetic . | . . . Robot Hit Streak 15 | 2 15 15 Robot Miss Streak 5 | 1 5 3 Penetration Max . | . . . Secondary Targets . | . . . Shots Hit Robots 124 | 4 86 34 Core Hits 54 | 4 40 10 Critical Kills . | . . . Critical Parts Destroyed . | . . . Critical Strikes 4 | . 4 . Burn 4 | . 4 . Melee Attacks . | . . . Impact . | . . . Slashing . | . . . Piercing . | . . . Sneak Attacks . | . . . Combat Hostiles . | . . . Follow-up Attacks . | . . . Damage Inflicted 1924 | 45 1170 709 Guns 809 | 45 764 . Cannons 641 | . 18 623 Explosions 474 | . 388 86 Melee . | . . . Ramming . | . . . Kinetic 719 | 45 622 52 Thermal 731 | . 160 571 Explosive 474 | . 388 86 Electromagnetic . | . . . Impact . | . . . Slashing . | . . . Piercing . | . . . Highest Corruption 2 | . 2 2 Average Corruption 2 | . 2 2 Corruption Purged . | . . . Corruption Blocked . | . . . Effects 15 | . 11 4 Message Errors 3 | . 2 1 Matter Fused 5 | . 5 . Data Loss (minor) 1 | . 1 . Data Loss (major) 3 | . 2 1 Misfires 1 | . 1 . Alerts 1 | . . 1 Weapon Failures 1 | . . 1 Overload Shots . | . . . Overflow Damage 21 | . 10 11 Projectiles 11 | . . 11 Explosions 10 | . 10 . Melee . | . . . Knockbacks 1 | . . 1 Impact . | . . . Kinetic 1 | . . 1 Secondary . | . . . Self-Inflicted Damage 24 | . . 24 Shots 1 | . . 1 Rammed . | . . . Targets Rammed . | . . . Kicked . | . . . Crushed . | . . . Highest Temperature 168 | . 168 3 Average Temperature 42 | . 43 3 Received Heat Transfer 510 | . 234 276 Siege Activations . | . . . Martial Activations . | . . . Shielding Activations . | . . . Robots Disrupted . | . . . Combat Hostiles . | . . . Robots Corrupted . | . . . Combat Hostiles . | . . . Parts Fried . | . . . Impact Corruptions . | . . . Robots Melted 1 | . 1 . Combat Hostiles 1 | . 1 . Parts Melted 3 | . 3 . Heat Transferred 1924 | . 740 1184 Parts Sabotaged . | . . . Parts Stolen . | . . . Parts Stripped . | . . . Power Chain Reactions . | . . . Alert | -11 -10 -10 ------- Run | Yrd Mat Sub Maximum Alert Level . | . . . Low Security (%) 100 | 100 100 . Level 1 . | . . . Level 2 . | . . . Level 3 . | . . . Level 4 . | . . . Level 5 . | . . . High Security . | . . . Max Security . | . . . Peak Influence 153 | 5 153 . Initial . | . . . Average 50 | . 52 . Influence Increases 785 | 10 625 150 Destroy 0b10 Robot/C 380 | . 320 60 Destroy 0b10 Robot/NC 40 | 10 30 . Destroy Leader 76 | . 76 . Successful Hack 36 | . 36 . Select Force Hacks 60 | . 60 . Disable Machine 15 | . 15 . Destroy Structure 28 | . 28 . Lose Combat Pursuer 150 | . 60 90 Influence Decreases 721 | 10 484 227 Entered New Map 69 | . . 69 Time Decay 612 | 10 474 128 Lost Part 40 | . 10 30 Squads Dispatched 5 | . 5 . Investigation 5 | . 5 . Extermination . | . . . Reinforcement . | . . . Assault . | . . . Garrison . | . . . Intercept . | . . . Searches Triggered . | . . . Construction Impeded . | . . . Haulers Reinforced . | . . . Active Scanning Responses . | . . . Cargo Convoy Interrupts . | . . . Stealth | -11 -10 -10 --------- Run | Yrd Mat Sub Distress Signals 1 | . 1 . Communications Jammed . | . . . Distress Signals . | . . . Times Spotted 40 | . 28 12 Peak Tracking Total 7 | . 5 7 Tactical Retreats 6 | . 2 4 Traps | -11 -10 -10 ------- Run | Yrd Mat Sub Traps Triggered 3 | . 3 . Indirectly . | . . . Trap Hack Attempts . | . . . Triggered . | . . . Disarmed . | . . . Reprogrammed . | . . . Reused . | . . . Traps Extracted . | . . . Installed . | . . . Triggered . | . . . Machines | -11 -10 -10 ---------- Run | Yrd Mat Sub Machines Disabled 3 | . 1 2 Max in Single Turn 1 | . 1 1 Machines Repaired . | . . . Machines Dismantled . | . . . Machines Sabotaged . | . . . Overloaded Fab Kills . | . . . Hacking | -11 -10 -10 --------- Run | Yrd Mat Sub Machines Accessed 11 | . 10 1 Terminals 7 | . 7 . Fabricators . | . . . Repair Stations 1 | . 1 . Recycling Units 2 | . 2 . Scanalyzers . | . . . Garrison Access . | . . . Total Hacks 38 | . 34 4 Successful 20 | . 16 4 Failed 17 | . 17 . Catastrophic 1 | . 1 . Database Lockouts 1 | . 1 . Manual 24 | . 24 . Terminals 24 | . 24 . Fabricators . | . . . Repair Stations 2 | . 2 . Recycling Units 8 | . 8 . Scanalyzers . | . . . Garrison Access . | . . . Terminal Hacks 9 | . 5 4 Record 4 | . . 4 Robot Analysis 3 | . 3 . Prototype ID Bank 1 | . 1 . Locate Traps 1 | . 1 . Fabricator Hacks . | . . . Repair Station Hacks . | . . . Recycling Unit Hacks 2 | . 2 . Retrieve Components 2 | . 2 . Scanalyzer . | . . . Garrison Access Hacks . | . . . Unauthorized Hacks 9 | . 9 . Terminals 5 | . 5 . Botnet 4 | . 4 . Operators 1 | . 1 . Fabricators . | . . . Repair Stations . | . . . Recycling Units 4 | . 4 . Reject 1 | . 1 . Mask 1 | . 1 . Tunnel 2 | . 2 . Scanalyzers . | . . . Garrison Access . | . . . Data Cores Recovered . | . . . Used . | . . . Hacking Detections 10 | . 10 . Full Trace Events 3 | . 3 . Feedback Events . | . . . Feedback Blocked . | . . . Robot Schematics Acquired . | . . . Robots Built . | . . . Authchips . | . . . Time . | . . . Total Robot Build Rating . | . . . Part Schematics Acquired . | . . . Parts Built . | . . . Authchips . | . . . Time . | . . . Total Part Build Rating . | . . . Part Studies Acquired . | . . . Parts Repaired . | . . . Time . | . . . Parts Recycled . | . . . Recycled Matter . | . . . Retrieved Matter . | . . . Retrieved Components 11 | . 11 . Parts Scanalyzed . | . . . Part Schematics Acquired . | . . . Parts Damaged . | . . . Bothacking | -11 -10 -10 ------------ Run | Yrd Mat Sub Used RIF Installer . | . . . Robots Hacked . | . . . Non-combat . | . . . Combat . | . . . Robot Hacks Applied . | . . . Relay Couplers Released . | . . . Fabnet Peak Effective % . | . . . Robots Rewired . | . . . Allies Hacked . | . . . Hacks Repelled . | . . . Allies | -11 -10 -10 -------- Run | Yrd Mat Sub Total Allies . | . . . Largest Group . | . . . Highest-Rated Group . | . . . Highest-Rated Ally . | . . . Total Orders . | . . . Ally Attacks . | . . . Total Damage . | . . . Kills . | . . . Allies Corrupted . | . . . Allies Melted . | . . . Intel | -11 -10 -10 ------- Run | Yrd Mat Sub Active Infowar (turns) 1591 | 14 1577 . Terrain 1591 | 14 1577 . Robot Analysis Total 3 | . 3 . Derelict Logs Recovered 2 | . . 2 Drone Launches . | . . . Drone Recoveries . | . . . Exploration | -11 -10 -10 ------------- Run | Yrd Mat Sub Turns Passed 2486 | 67 1801 618 Spaces Moved 1454 | 36 965 453 Core 5 | 5 . . Treads . | . . . Legs 417 | 31 386 . Wheels 1032 | . 579 453 Hover . | . . . Flight . | . . . Fastest Speed 50 | 50 100 100 Average Speed 108 | 114 110 105 Slowest Speed 190 | 190 190 115 Overloaded Moves . | . . . Propulsion Burnouts . | . . . Robots Hopped . | . . . Potential Cave-ins . | . . . Cave-ins Triggered . | . . . Exploration Rate (%) 44 | 4 99 29 Regions Visited 2 Branch Regions 1 Pre-discovered Areas 3 | . 2 1 Known Exits Taken . | . . . Unknown Exits Taken 2 | 1 1 . Scrap Searched 4 | . . 4 Spaces Dug 5 | . . 5 Terrain Destroyed 66 | . 26 40 Melee . | . . . Projectile . | . . . AOE 66 | . 26 40 Terrain Rammed . | . . . Walls Destroyed . | . . . Machines Disabled . | . . . Actions | -11 -10 -10 --------- Run | Yrd Mat Sub Total 2167 | 52 1585 530 Wait 503 | . 486 17 Move 1452 | 35 964 453 Hop . | . . . Pick Up 33 | 6 16 11 Fast Attach 13 | 7 6 . Attach 7 | . 2 5 Detach 3 | . 3 . Swap 23 | . 19 4 Drop 22 | . 18 4 Fire 111 | 4 71 36 Melee . | . . . Ram . | . . . Kick . | . . . Crush . | . . . Escape Stasis . | . . . Rewire . | . . . Trap . | . . . Miscellaneous . | . . . Route ------- -11/Scrapyard -10/Materials (discovered 5 exits: [*Mat x3] / [*Min] / *Sub) -10/Subcaves (discovered 2 exits: *Rec / [*Scr]) History --------- Turn | Location | Event 9 | -11/Scrapyard | Discovered new exit (range 16) 68 | -11/Scrapyard | Entered Materials 200 | -10/Materials | Discovered new exit (range 8) 307 | -10/Materials | Build established: Mutant 622 | -10/Materials | Discovered new exit (range 9) 900 | -10/Materials | Discovered new exit (range 15) 991 | -10/Materials | Discovered new exit (range 16) 1235 | -10/Materials | Discovered new exit (range 11) 1324 | -10/Materials | Central database locked down 1869 | -10/Materials | Entered Subcaves 1870 | -10/Subcaves | Approached by a straggling Scientist 1873 | -10/Subcaves | Learned location of Zion (-6) 1913 | -10/Subcaves | Identified exit to Recycling 2053 | -10/Subcaves | Visited Clippyterm 2056 | -10/Subcaves | Learned Factory fabricator intel 2056 | -10/Subcaves | Learned 40 Factory zone layouts 2104 | -10/Subcaves | Disturbed a concealed Subdweller 2332 | -10/Subcaves | Core integrity fell below 50% 2435 | -10/Subcaves | Core integrity fell below 20% 2487 | -10/Subcaves | Destroyed by GG-8KT(R) with Subdweller Laser Last Messages --------------- 02368_ Lgt. Assault Rifle fries itself beyond repair. 02369_ Acquired 17 matter. 02377_ Flight Unit fries itself beyond repair. 02378_ Subatomizers dissect the Sub. Monowheel. 02379_ Acquired Sub. Power Source. 02380_ Lgt. Ion Engine fries itself beyond repair. 02384_ Acquired Sub. Monowheel. 02386_ Acquired 10 matter. 02392_ Subatomizers dissect the Sub. Optics. 02403_ Com. Wheel destroyed. 02404_ Subatomizers dissect the Sub. Optics. 02411_ Destroyed Autobeam. 02417_ Beam Cannon destroyed. 02430_ System corrupted: Lgt. Cannon jammed. 02436_ Destroyed Autobeam. 02440_ Acquired 16 matter. 02445_ Acquired 23 matter. 02452_ Subatomizers dissect the Sub. Optics. 02482_ 47-WYM(R) destroyed. Map ----- +----------------------------------------------------+ | ?????????????????????????????????????????????????? | | ?????????????????????????????????????????????????? | | ?????????????????????????????????????????????????? | | ?????????????????????????????????????????????????? | | ?????????????????????????????????????????????????? | | ?????????????????????????????????????????????????? | | ?????????????????????????????????????????????????? | | ?????????????????????????????????????????????????? | | ?????????????????????????????????????????????????? | | ?????????????????????????????????????????????????? | | ?????????????????????????????????????????????????? | | ?????????????????????????????????????????????????? | | ?????????????????????????????????????????????????? | | ?????????????????????????????????????????????????? | | ?????????????????????????????????????????????????? | | ?????????????????????????????????????????????????? | | ?????????????????????????????????????????????????? | | ?????????????????????????????????? ""????????????? | | ?????????????????????????????????? "????????????? | | ????????????????????????????????? "?????????????? | | ??????????????????????##???????? #??????????????? | | ?????????????????????## ###???? # ## "?????????? | | ?????????????????????# ##??# ?????????? | | ?????????????????????# ### " ??????????? | | ??????????##?????????# %""??????????? | | ??????????# ###??????# @ R" ?????????? | | ??????????# #?????### ### #???????????? | | ??????????# #??????## ###??????????????????? | | ?????????? #??????# #??????????????????? | | ??????????? #??#### ##??????????????????? | | ?????????????#" #?## ##???????????????????? | | ?????????????# ### ##????????????????????? | | ???? "?????##?# # ##?????????????????????? | | ???? ???## ?#" ##??????????????????????? | | ?????# ?## "## ##???????????????????????? | | ?????# ##""" #####????????????????????????? | | ????## ##????????????????????????????? | | ??### #?????????????????????????????? | | ?? #?????????????????????????????? | | ? ###???????????????????????????? | | ??? #???????????????????????????? | | ????# ### ##???????????????????????????? | | ????# ???# ####????????????????????????????? | | ????# ????##%%##???????????????????????????????? | | ??? ?????# #????????????????????????????????? | | ???? ###?## ##????????#??????????????????????? | | ???? ### ####????"#??????????????????????? | | ????? ### #???? #??????????????????????? | | ?????? ## #??? #??????????????????????? | | ??????# ##!! ##### #??????????????????????? | +----------------------------------------------------+ Best States ------------- Heat Dissipation 35 Energy Generation 15 Energy Capacity 250 Matter Stores 300 Matter Capacity 300 Sight Range 16 Terrain Scan Range 16 Terrain Scan Density 10 Core Shielding 20 Evasion (%) 55 Item Schematics ----------------- None Robot Schematics ------------------ None Fabricated ------------ Nothing Repaired ---------- Nothing Studied --------- None Alien Tech Used ----------------- None Achievements -------------- None Challenges ------------ None Game ------ Seed ZioniteTeslaDrillbomb Manual? 0 Play Time 00:23:23 Cumulative 669.1 hours Start 2025.11.07 @ 00:11:57 End 2025.11.07 @ 00:32:15 Sessions 1 Manual Loads 0 Difficulty Rogue Special Mode None Game No. 462 Rogue 462 Adventurer 0 Explorer 0 Win Type - Total 1 Types 1/0/0/0/0/0/0/0/0/0 Lore% 57 Gallery% 65 Achievement% 36 Wizard Run 0 Options --------- Layout 1 ASCII 0 Keyboard 0 Movement Mouse Keybinds 0 Fullscreen 1 Font 20/SmallcapsGlow Map View 54x42 Zoom Use 0% Tactical HUD 1 Map Filters NONE Filters NONE Steam 1 RUN: 1a5dba3f-f874-4a3f-a246-f411b0f6e520